bitfinex/quotes_ETHUSD_20250106
["timestamp","ask_amount","ask_price","bid_price","bid_amount"]
[1736125917257,0.9091,3618.4,3617.6,0.33423054]
[1736125917457,0.9091,3618.4,3617.6,2.52697511]
[1736125917858,1.13416695,3619.3,3618.0,2.48755]
[1736125917859,0.126,3618.8,3618.0,2.48755]
[1736125918255,0.126,3618.8,3618.1,0.03884327]
[1736125918997,3.0,3619.1,3618.1,0.03884327]
[1736125919302,0.126,3619.0,3618.2,0.8252]
[1736125919470,0.126,3619.2,3618.4,2.48726]
[1736125919896,0.126,3619.2,3618.5,0.03848669]
[1736125920508,2.48687,3619.0,3618.5,0.03848669]
[1736125920831,4.0921188,3618.9,3617.8,0.8244]
[1736125920976,3.28057436,3618.9,3618.6,0.0384102]
[1736125921174,2.48708,3618.7,3617.8,0.8244]
[1736125921623,5.48708,3618.7,3617.8,0.8244]
[1736125921775,3.0,3618.7,3617.4,2.48794]
[1736125922107,0.64065744,3618.6,3617.6,0.8244]
[1736125922474,0.64065744,3618.6,3617.6,3.3122]
[1736125922675,0.64065744,3618.6,3617.7,2.48776]
[1736125922874,0.126,3618.8,3617.7,2.48776]
[1736125923331,0.126,3618.7,3617.6,0.8244]
[1736125923622,0.126,3618.7,3617.7,0.03850723]
[1736125924031,2.61308,3618.7,3617.7,0.03850723]
[1736125924327,0.126,3618.7,3617.7,2.52624723]
[1736125924533,0.765091,3618.7,3617.7,2.52624723]
[1736125925072,0.126,3618.6,3617.7,2.52624723]
[1736125925881,0.126,3618.6,3617.7,0.03850723]
[1736125926135,0.126,3618.6,3617.8,0.8105]
[1736125926291,4.52387407,3620.5,3618.3,0.8105]
[1736125926623,2.21950734,3619.6,3618.9,0.8105]
[1736125927012,2.21950734,3619.6,3619.0,0.03836709]
[1736125927232,1.41830734,3619.6,3619.0,0.03836709]
[1736125927554,1.13416695,3619.6,3619.0,0.03836709]
[1736125927708,1.93536695,3620.7,3619.3,3.31307436]
[1736125927891,1.93536695,3620.7,3620.0,2.48618]
[1736125928100,1.93536695,3620.7,3620.1,0.8105]
[1736125928313,1.13416695,3620.7,3620.1,0.84822788]
[1736125928512,1.72301784,3620.7,3620.1,0.84822788]
[1736125929406,3.24758,3620.6,3620.1,0.03772788]
[1736125929622,3.0,3620.5,3619.4,0.7583]
[1736125929933,3.0,3620.5,3620.2,0.03768678]
[1736125930098,0.93390053,3620.4,3619.4,3.24488]
[1736125930435,0.93390053,3620.4,3619.5,0.03716094]
[1736125930731,3.24758,3620.6,3619.5,0.03716094]
[1736125930732,0.7618,3620.6,3619.5,0.03716094]
[1736125930998,0.8878,3620.6,3619.6,2.48644]
[1736125931367,0.8878,3620.6,3619.6,2.52359017]
[1736125931861,3.8878,3620.6,3619.6,0.03715017]
[1736125932326,3.8878,3620.6,3619.5,2.48649]
[1736125932527,0.8878,3620.6,3619.7,2.5235194]
[1736125932742,0.8878,3620.6,3619.7,2.48638]
[1736125932939,0.8878,3620.6,3619.8,0.03712863]
[1736125933512,3.8878,3620.6,3619.8,0.03712863]
[1736125933713,3.8878,3620.6,3619.4,3.24485]
[1736125933913,4.58403709,3620.6,3619.4,3.81959244]
[1736125934247,4.06980709,3620.6,3619.5,0.03710539]
[1736125934553,3.0,3620.5,3619.5,0.03710539]
[1736125935059,0.126,3620.4,3619.5,0.03710539]
[1736125935618,3.0,3620.5,3619.5,0.03710539]
[1736125935848,0.126,3620.4,3619.5,0.03710539]
[1736125936117,0.126,3620.4,3619.5,2.85182493]
[1736125936873,0.7618,3620.6,3619.5,0.36530493]
[1736125937033,0.126,3620.4,3619.6,2.48644]
[1736125937217,0.126,3620.4,3619.6,2.52361037]
[1736125937413,0.126,3620.4,3619.6,0.03717037]
[1736125937647,0.126,3620.4,3619.4,3.24489]
[1736125937831,0.126,3620.4,3619.7,0.03708384]
[1736125938040,0.126,3620.4,3619.4,3.24489]
[1736125938245,0.126,3620.4,3619.8,0.03675909]
[1736125938410,0.126,3620.4,3619.6,2.48645]
[1736125938611,0.126,3620.5,3619.9,0.03674832]
[1736125938842,0.126,3620.7,3620.0,2.48618]
[1736125939043,0.126,3620.7,3620.0,2.52232134]
[1736125939224,0.126,3620.7,3620.0,0.03614134]
[1736125939427,0.126,3620.7,3619.5,0.324489]
[1736125939644,0.126,3620.7,3620.1,0.03613057]
[1736125939854,0.126,3620.7,3619.5,0.324489]
[1736125940180,0.126,3620.7,3619.6,2.48646]
[1736125940328,0.126,3620.6,3619.7,0.2810949]
[1736125940757,0.126,3620.6,3619.8,0.03603662]
[1736125940967,2.48536,3621.2,3619.8,0.03603662]
[1736125941131,0.126,3620.7,3619.9,2.48625]
[1736125941531,0.126,3620.7,3620.0,0.03601508]
[1736125941830,0.126,3620.7,3620.0,0.31635108]
[1736125942033,0.126,3620.7,3620.0,0.03601508]
[1736125942359,0.126,3620.7,3619.8,2.48632]
[1736125942564,0.126,3620.7,3620.1,0.03600431]
[1736125942786,0.126,3620.7,3619.8,2.48632]
[1736125943085,0.126,3620.7,3620.2,0.03599354]
[1736125943372,0.687151,3620.7,3620.2,0.03599354]
[1736125943532,3.0,3620.6,3620.2,0.03599354]
[1736125943871,2.48577,3620.6,3620.3,0.03477419]
[1736125944053,5.48577,3620.6,3620.3,0.03477419]
[1736125944229,5.48588,3620.5,3619.1,2.48676]
[1736125944426,2.48588,3620.5,3620.4,0.03358624]
[1736125944631,2.48588,3620.5,3619.2,2.98565344]
[1736125944632,0.126,3620.7,3619.6,2.48644]
[1736125944876,0.126,3620.7,3620.4,0.03358624]
[1736125945085,0.126,3620.7,3619.4,2.48659]
[1736125945387,3.126,3620.7,3619.5,2.48651]
[1736125945584,4.23742544,3620.7,3619.5,3.12399496]
[1736125945728,3.72315544,3620.7,3619.5,3.12399496]
[1736125945934,3.7399998,3620.7,3619.5,0.03368318]
[1736125946133,2.48585,3620.5,3619.2,2.98563344]
[1736125946378,2.48585,3620.5,3619.3,0.03370472]
[1736125946679,2.48592,3620.4,3619.3,0.03370472]
[1736125947584,2.48592,3620.4,3619.3,0.02928731]
[1736125948864,3.0,3620.6,3619.3,0.02928731]
[1736125949033,2.48605,3620.2,3619.0,0.55]
[1736125949228,2.48605,3620.2,3619.4,0.0335467]
[1736125949429,2.48605,3620.2,3618.7,0.55]
[1736125949677,2.48605,3620.2,3619.5,0.03353089]
[1736125949840,2.48605,3620.2,3618.6,2.50257436]
[1736125950168,0.81143244,3620.5,3619.6,0.03352012]
[1736125950373,0.81143244,3620.5,3619.1,2.4868]
[1736125950577,0.81143244,3620.5,3619.7,0.03350935]
[1736125950781,2.48601,3620.3,3619.1,2.4868]
[1736125951086,2.48625,3620.0,3619.8,0.03349858]
[1736125951287,0.248625,3619.9,3618.3,2.50257436]
[1736125951574,2.48652,3619.6,3618.2,2.48738]
[1736125951743,2.48652,3619.6,3618.4,0.03386661]
[1736125952152,2.48652,3619.6,3618.5,0.7835]
[1736125952153,0.7614,3619.5,3618.5,0.7835]
[1736125952459,0.127,3619.4,3618.6,0.03384505]
[1736125952784,0.127,3619.4,3618.6,0.36430656]
[1736125955287,0.127,3619.4,3618.6,0.03384505]
[1736125955660,0.127,3619.4,3618.5,0.7835]
[1736125956180,0.8183,3619.3,3618.5,0.7835]
[1736125956371,0.8183,3619.3,3618.6,0.03417344]
[1736125958498,0.127,3619.6,3618.7,3.30343]
[1736125958657,0.127,3619.6,3618.7,3.63719034]
[1736125958859,0.127,3619.6,3618.8,0.03415694]
[1736125959802,5.4866,3619.4,3617.9,0.7582]
[1736125960113,0.127,3619.3,3618.9,0.03343842]
[1736125960314,0.127,3619.3,3618.6,0.7582]
[1736125960611,0.469994,3619.3,3618.6,0.7582]
[1736125960817,0.469994,3619.3,3618.2,2.48741]
[1736125960818,0.7669,3619.2,3618.3,0.7905]
[1736125960983,0.7669,3619.2,3618.7,0.03245997]
[1736125961244,0.7669,3619.2,3618.3,0.7905]
[1736125961443,0.7669,3619.2,3618.8,0.03248454]
[1736125961659,1.104957,3619.2,3618.3,0.7905]
[1736125961984,0.7669,3619.2,3618.9,0.03247377]
[1736125962283,0.8939,3619.2,3618.4,0.03252766]
[1736125962436,3.25377,3619.1,3619.0,0.03246299]
[1736125962626,3.25377,3619.1,3618.3,0.7905]
[1736125962961,3.25377,3619.1,3619.0,0.03246299]
[1736125963166,3.591847,3619.1,3618.3,0.7905]
[1736125963525,3.591847,3619.1,3618.4,0.03252766]
[1736125964122,2.48701,3618.9,3618.4,0.03252766]
[1736125964329,3.8316,3618.8,3618.4,0.03252766]
[1736125964543,3.8316,3618.8,3617.8,0.7584]
[1736125964745,0.8316,3618.8,3617.8,0.7584]
[1736125964965,2.48708,3618.7,3617.9,0.03266742]
[1736125965151,2.48724,3618.5,3617.9,0.03266742]
[1736125965364,0.7804,3618.7,3617.9,0.03266742]
[1736125965696,0.7804,3618.7,3617.5,0.8129]
[1736125965988,0.8257,3618.4,3618.0,0.03271724]
[1736125966291,0.33282744,3618.3,3617.6,0.03276038]
[1736125966488,0.33282744,3618.3,3618.1,0.03280243]
[1736125966691,0.33282744,3618.3,3617.5,0.8129]
[1736125967495,0.33282744,3618.3,3617.6,0.03285635]
[1736125967876,0.33282744,3618.3,3617.5,0.8129]
[1736125968080,0.33282744,3618.3,3617.7,0.03284556]
[1736125968262,0.33282744,3618.3,3617.5,0.8129]
[1736125968630,0.36458174,3618.2,3617.5,0.8129]
[1736125968800,0.36458174,3618.2,3617.6,0.03285635]
[1736125969095,0.7748,3618.2,3617.0,2.48824]
[1736125969447,0.7748,3618.2,3617.1,0.03229348]
[1736125969660,3.26224,3618.2,3617.1,0.03229348]
[1736125969883,2.48756,3618.0,3617.1,0.03229348]
[1736125970043,1.450556,3617.9,3617.1,0.03229348]
[1736125970248,1.450556,3617.9,3616.9,0.801]
[1736125970495,1.450556,3617.9,3617.2,0.03253024]
[1736125970690,1.450556,3617.9,3616.9,0.801]
[1736125970856,1.450556,3617.9,3617.3,0.03251945]
[1736125971050,0.3938116,3617.8,3616.9,0.801]
[1736125971279,3.938196,3617.9,3616.9,0.801]
[1736125971502,1.450556,3617.9,3617.0,0.03255181]
[1736125971710,0.9018,3617.9,3617.0,0.03255181]
[1736125973370,0.824,3617.7,3617.0,0.03255181]
[1736125974779,0.7625,3617.5,3617.0,0.03255181]
[1736125975015,3.7625,3617.5,3616.3,3.26492]
[1736125975233,3.7625,3617.5,3617.1,0.03073297]
[1736125975435,3.7625,3617.5,3616.3,3.26492]
[1736125975736,3.7625,3617.5,3617.2,0.03072219]
[1736125975937,6.2504,3617.5,3616.3,3.26492]
[1736125976318,6.2504,3617.5,3616.4,0.0308085]
[1736125976558,0.8154,3617.3,3616.4,0.0308085]
[1736125976860,0.8154,3617.3,3616.3,3.26492]
[1736125977219,3.0,3617.2,3616.4,0.0308085]
[1736125977415,3.0,3617.0,3616.2,0.1781749]
[1736125977621,3.87516844,3617.0,3616.5,0.03079771]
[1736125977842,3.87516844,3617.0,3616.2,0.1781749]
[1736125978049,3.87516844,3617.0,3616.6,0.03078692]
[1736125978356,3.87516844,3617.0,3616.2,0.1781749]
[1736125978556,3.87516844,3617.0,3616.7,0.03077613]
[1736125978750,0.71242784,3616.9,3616.2,0.1781749]
[1736125979145,0.71242784,3616.9,3616.3,0.03081929]
[1736125979324,0.8028,3616.8,3616.3,0.03081929]
[1736125979523,0.8028,3616.8,3616.2,0.1781749]
[1736125979747,5.48846,3616.7,3616.2,0.1781749]
[1736125980058,0.82636878,3616.6,3616.2,0.1781749]
[1736125980235,0.82636878,3616.6,3616.3,0.03081929]
[1736125980432,0.82636878,3616.6,3616.2,0.1781749]
[1736125980663,2.50257436,3616.4,3616.2,0.1781749]
[1736125980957,0.7934,3616.5,3616.2,0.1781749]
[1736125981666,0.7934,3616.5,3616.3,0.03081929]
[1736125981867,0.7934,3616.5,3616.2,0.1781749]
[1736125982159,0.7934,3616.5,3616.4,0.0308085]
[1736125982351,1.68445044,3616.5,3616.3,0.03081929]
[1736125982658,1.68445044,3616.5,3616.2,0.1781749]
[1736125982861,1.68445044,3616.5,3616.4,0.0308085]
[1736125983161,1.68445044,3616.5,3616.2,0.1781749]
[1736125983479,0.126,3617.0,3616.2,0.1781749]
[1736125983655,0.126,3617.0,3616.3,0.03081929]
[1736125983656,0.7717,3616.8,3616.3,0.03081929]
[1736125983842,0.7717,3616.8,3616.2,0.1781749]
[1736125984046,0.7717,3616.8,3616.4,0.0308085]
[1736125984248,4.36056344,3616.8,3616.2,0.1781749]
[1736125984556,4.36056344,3616.8,3616.5,0.03079771]
[1736125984760,1.36056344,3616.8,3616.2,0.1781749]
[1736125984945,2.48846,3616.7,3616.2,0.1781749]
[1736125985141,1.36056344,3616.8,3616.2,0.1781749]
[1736125985879,0.58886344,3616.8,3616.3,0.03143099]
[1736125986025,0.126,3617.1,3616.4,0.8273]
[1736125986230,0.126,3617.1,3616.4,0.8587202]
[1736125986873,3.27877,3618.0,3616.9,0.8152]
[1736125987248,0.126,3617.9,3617.0,0.03135546]
[1736125987468,0.340477,3617.8,3617.0,0.03135546]
[1736125989285,0.126,3617.8,3617.0,2.51955546]
[1736125989491,0.126,3617.8,3617.1,0.8244]
[1736125989816,0.126,3617.8,3617.2,2.48809]
[1736125989986,0.126,3617.8,3617.3,0.8148]
[1736125990417,0.126,3618.2,3617.6,0.77]
[1736125990552,0.126,3618.4,3617.6,1.07960994]
[1736125990958,0.126,3618.4,3617.7,0.03143663]
[1736125992056,5.48708,3618.7,3617.7,0.03143663]
[1736125992403,0.126,3618.4,3617.6,0.77]
[1736125992554,0.126,3618.4,3617.6,1.095789]
[1736125992754,0.126,3618.4,3617.7,0.03132544]
[1736125993391,0.126,3618.3,3617.8,0.7965]
[1736125993709,0.126,3618.3,3617.9,0.03130388]
[1736125993887,0.126,3618.3,3617.9,0.39543817]
[1736125994093,3.0,3618.7,3617.9,0.8217]
[1736125994287,0.126,3618.3,3618.0,0.03129309]
[1736125996831,3.593085,3619.5,3618.1,2.48747]
[1736125996832,0.126,3618.6,3618.1,2.48747]
[1736125996982,0.126,3618.6,3618.2,0.8201]
[1736125997433,0.126,3618.6,3618.3,0.03019427]
[1736125997615,0.126,3618.6,3618.3,0.33377643]
[1736125997810,5.48666,3619.4,3618.3,0.33377643]
[1736125997995,2.48667,3619.3,3618.5,0.7875]
[1736125998329,0.7906,3619.5,3618.5,0.7875]
[1736125998836,1.11487054,3619.9,3619.0,0.821]
[1736125998980,1.11487054,3619.9,3618.9,2.50257436]
[1736125998981,0.00849454,3619.9,3619.2,2.4867]
[1736125999185,0.7626,3619.8,3618.9,0.821]
[1736125999384,0.7626,3619.8,3619.3,0.0300865]
[1736125999690,3.31987,3619.3,3618.6,0.821]
[1736126000137,2.48674,3619.2,3618.7,0.03015116]
[1736126000336,0.8332,3619.3,3618.7,0.03015116]
[1736126000486,0.8332,3619.3,3618.3,1.96065496]
[1736126000687,0.50932,3619.2,3618.8,0.03014038]
[1736126000888,2.50257436,3619.0,3618.3,1.15355496]
[1736126001082,5.48699,3618.9,3618.3,1.15355496]
[1736126001307,5.48699,3618.9,3618.2,0.7661]
[1736126001839,0.8332,3619.1,3618.2,0.7661]
[1736126002123,3.72006744,3619.0,3618.2,0.7661]
[1736126002336,3.0,3618.9,3618.2,0.7661]
[1736126002575,1.23318744,3619.0,3618.2,0.7661]
[1736126004135,3.0,3618.9,3618.2,0.7661]
[1736126004347,0.75532674,3618.8,3618.2,0.7661]
[1736126004690,2.50257436,3618.7,3617.3,0.8104]
[1736126004991,2.48723,3618.5,3617.3,0.8104]
[1736126005421,2.50257436,3618.0,3616.9,1.15355496]
[1736126005734,2.50257436,3618.0,3616.7,0.8104]
[1736126005735,0.7696,3617.7,3616.7,0.8104]
[1736126005890,3.25737,3617.7,3616.7,0.8104]
[1736126006234,2.48784,3617.6,3616.7,0.8104]
[1736126008710,3.0,3617.6,3616.7,0.8104]
[1736126009044,2.48806,3617.3,3616.7,0.8104]
[1736126009426,0.7696,3617.7,3616.7,0.8104]
[1736126009746,2.48816,3617.2,3616.4,0.8248]
[1736126010156,3.0,3617.3,3616.5,0.03125763]
[1736126010460,5.4883,3617.0,3616.5,0.03125763]
[1736126010623,5.4883,3617.0,3616.4,0.8248]
[1736126013668,3.0,3617.0,3616.4,0.8248]
[1736126014160,3.0,3617.0,3616.5,0.03140423]
[1736126014363,3.627079,3617.0,3616.5,0.03140423]
[1736126015408,0.7592,3617.5,3616.5,0.03140423]
[1736126015656,0.129,3617.0,3616.6,0.8197]
[1736126015864,0.129,3617.0,3616.6,0.85109344]
[1736126016415,0.129,3617.0,3616.6,3.33960344]
[1736126016719,0.129,3617.0,3616.7,0.8197]
[1736126016914,0.129,3617.0,3616.8,0.33396034]
[1736126017156,0.129,3617.0,3616.8,0.36527659]
[1736126018035,0.129,3617.0,3616.8,0.03131625]
[1736126018773,0.129,3617.0,3616.3,0.8197]
[1736126019066,0.129,3617.0,3616.4,0.03136954]
[1736126020281,0.129,3616.9,3616.4,0.03136954]
[1736126020679,0.129,3616.9,3616.5,0.8197]
[1736126021040,0.129,3616.9,3616.5,0.85105875]
[1736126021364,0.129,3616.9,3616.5,1.20286112]
[1736126021764,0.129,3616.9,3616.5,0.85105875]
[1736126021957,2.48781,3617.7,3616.6,0.8197]
[1736126022158,0.129,3617.6,3616.6,0.8197]
[1736126022362,0.7819,3617.9,3616.8,0.7978]
[1736126022565,3.62141695,3618.5,3617.2,0.7978]
[1736126022727,0.129,3618.4,3617.4,0.7905]
[1736126023136,3.62141695,3618.5,3617.5,0.03115482]
[1736126023367,0.129,3618.4,3617.5,0.03115482]
[1736126023881,2.6163,3618.4,3617.5,0.03115482]
[1736126024380,3.20518744,3618.4,3617.5,0.03115482]
[1736126024534,2.6163,3618.4,3617.5,0.03115482]
[1736126025050,0.1256745,3618.4,3617.6,0.7757]
[1736126025231,3.0,3618.8,3617.6,3.29445188]
[1736126025434,3.0,3618.8,3617.7,2.48775]
[1736126025435,0.129,3618.7,3617.7,2.48775]
[1736126025761,0.129,3618.7,3617.8,0.7757]
[1736126025969,0.129,3618.7,3617.9,0.57969454]
[1736126026133,0.129,3618.7,3617.9,0.61059396]
[1736126027164,2.48681,3619.1,3618.0,0.7974]
[1736126027478,0.129,3619.0,3618.1,0.82827785]
[1736126027680,0.129,3619.0,3618.2,0.38955824]
[1736126027896,0.129,3619.0,3618.2,0.42018278]
[1736126028593,3.129,3618.9,3618.2,0.42018278]
[1736126029477,5.61598,3618.9,3618.2,0.03062454]
[1736126029797,2.48703,3618.8,3618.2,0.03062454]
[1736126030645,2.48703,3618.8,3618.1,0.7974]
[1736126030842,2.48703,3618.8,3618.3,0.03061376]
[1736126031051,2.48703,3618.8,3618.1,0.7974]
[1736126031391,2.48703,3618.8,3618.4,0.03060298]
[1736126031596,2.48703,3618.8,3618.1,0.7974]
[1736126031907,2.48703,3618.8,3618.2,0.03062454]
[1736126035553,0.129,3618.9,3618.2,0.03062454]
[1736126035748,3.7704,3619.2,3618.2,0.03062454]
[1736126035984,0.128,3619.1,3618.3,0.7656]
[1736126036164,2.48697,3618.9,3618.3,0.7656]
[1736126036565,0.8233,3618.7,3618.4,0.02990057]
[1736126036771,2.48721,3618.5,3618.4,0.02990057]
[1736126036994,2.48721,3618.5,3617.9,0.8318]
[1736126037361,2.48721,3618.5,3618.0,0.0299437]
[1736126037756,0.8233,3618.7,3618.0,0.0299437]
[1736126038092,3.0,3618.6,3618.0,0.0299437]
[1736126038293,2.48708,3618.7,3618.0,0.0299437]
[1736126038799,3.0,3618.8,3618.0,0.0299437]
[1736126038954,0.7746,3618.4,3618.0,0.0299437]
[1736126039154,3.0,3618.2,3617.4,0.8206]
[1736126039450,2.48783,3617.7,3616.8,0.8206]
[1736126039693,0.128,3617.6,3616.9,0.02907056]
[1736126041423,0.128,3617.6,3617.0,0.7805]
[1736126041722,0.128,3617.6,3617.1,0.02904898]
[1736126041924,0.128,3617.6,3616.2,1.33172986]
[1736126041925,0.128,3617.6,3617.2,0.7805]
[1736126042224,0.128,3617.6,3617.4,0.7805]
[1736126042726,0.128,3617.6,3617.5,0.02940501]
[1736126043087,0.128,3617.6,3617.5,3.2729]
[1736126043285,0.128,3618.8,3618.0,0.785]
[1736126043499,0.128,3618.8,3618.1,0.02934031]
[1736126043723,0.128,3618.8,3618.2,0.785]
[1736126043911,0.128,3618.8,3618.3,0.02931875]
[1736126044111,0.128,3618.8,3618.2,0.785]
[1736126044307,0.128,3618.8,3618.3,0.02931875]
[1736126044514,0.128,3618.8,3618.2,0.785]
[1736126044687,0.128,3618.8,3618.3,0.02931875]
[1736126044889,0.128,3618.8,3618.2,0.785]
[1736126045090,0.128,3618.8,3618.3,0.02931875]
[1736126045332,0.128,3618.8,3618.2,0.785]
[1736126045627,0.128,3618.8,3618.3,0.02931875]
[1736126046127,0.128,3618.8,3618.4,0.02930291]
[1736126046631,1.13416695,3619.7,3618.6,0.8208]
[1736126046827,1.13416695,3619.8,3618.9,0.8208]
[1736126047132,0.128,3619.6,3619.0,0.35994958]
[1736126047295,0.128,3619.6,3619.1,0.8208]
[1736126047502,0.128,3619.6,3619.2,0.02915103]
[1736126052332,0.128,3619.6,3619.1,0.8208]
[1736126052633,0.00849454,3619.9,3619.2,0.02840336]
[1736126052634,0.128,3619.7,3619.2,0.02840336]
[1736126053041,0.13649454,3619.9,3619.1,0.8208]
[1736126053343,0.13649454,3619.9,3619.4,0.777]
[1736126053344,0.00849454,3619.9,3619.4,0.777]
[1736126053638,0.00849454,3619.9,3619.6,0.777]
[1736126054151,0.00849454,3619.9,3619.7,0.02807179]
[1736126054727,0.00849454,3619.9,3619.6,0.777]
[1736126054959,0.00849454,3619.9,3619.7,0.02807179]
[1736126056156,0.00849454,3619.9,3619.8,0.7847]
[1736126056523,0.00849454,3619.9,3619.8,0.81263986]
[1736126057450,0.00849454,3619.9,3619.8,0.02793986]
[1736126057951,0.00849454,3619.9,3619.5,0.7832]
[1736126058132,0.00849454,3619.9,3619.2,0.7744]
[1736126058133,0.8205,3619.8,3619.2,0.7744]
[1736126058331,2.48654,3619.5,3618.4,0.7744]
[1736126058524,2.48674,3619.2,3618.5,0.02710049]
[1736126058725,2.4868,3619.1,3618.5,0.02710049]
[1736126058928,2.4868,3619.1,3618.5,0.25562482]
[1736126059161,0.8205,3619.2,3618.5,0.02710049]
[1736126059325,2.48667,3619.3,3618.5,0.02710049]
[1736126060253,2.48689,3619.0,3618.5,0.02710049]
[1736126060567,3.0,3619.4,3618.5,0.02710049]
[1736126060568,0.8205,3618.8,3618.5,0.02710049]
[1736126060728,0.127,3618.7,3618.5,0.02710049]
[1736126061074,0.127,3618.7,3617.4,0.7744]
[1736126061355,2.48727,3618.5,3617.5,0.02780907]
[1736126062149,0.127,3618.4,3617.5,0.02780907]
[1736126062510,0.127,3618.4,3617.6,0.32901991]
[1736126062724,0.127,3618.4,3617.7,0.02793396]
[1736126063519,2.6143,3618.4,3617.7,0.02793396]
[1736126063726,0.127,3618.4,3617.4,0.7744]
[1736126063968,0.127,3618.4,3617.5,0.02795553]
[1736126064334,2.48737,3618.3,3617.5,0.02795553]
[1736126064529,2.48718,3618.6,3617.5,0.02795553]
[1736126064716,0.127,3618.5,3617.9,2.48762]
[1736126064914,0.127,3618.5,3618.1,0.8206]
[1736126065167,0.127,3618.5,3618.2,0.028072]
[1736126065380,3.0,3619.1,3618.2,0.028072]
[1736126065519,0.127,3619.1,3618.2,2.48738]
[1736126065841,0.127,3619.1,3618.4,0.8206]
[1736126066349,1.13416695,3619.4,3618.5,0.02806997]
[1736126066350,3.0,3619.4,3618.5,0.02806997]
[1736126066513,0.127,3619.3,3618.6,0.8206]
[1736126066713,0.127,3619.3,3618.7,0.02783625]
[1736126067254,0.127,3619.3,3618.8,0.33355762]
[1736126067667,0.127,3619.5,3618.9,0.0278147]
[1736126068375,0.127,3619.5,3618.6,0.8206]
[1736126068521,0.127,3619.5,3619.0,0.02820773]
[1736126068720,0.127,3619.5,3618.6,3.30773]
[1736126068922,0.127,3619.5,3618.7,0.35901306]
[1736126070766,0.127,3619.5,3618.8,0.813]
[1736126070969,3.0,3619.8,3618.8,0.813]
[1736126071122,0.127,3619.6,3618.9,0.02805187]
[1736126071318,0.127,3619.6,3618.8,0.813]
[1736126071561,0.127,3619.6,3618.9,0.35805887]
[1736126072761,0.127,3619.5,3618.9,0.35805887]
[1736126075139,0.127,3619.5,3618.9,0.02805187]
[1736126075345,0.127,3619.5,3619.0,0.02796536]
[1736126075559,0.127,3619.5,3618.8,0.59225187]
[1736126075878,0.127,3619.5,3619.1,0.02701952]
[1736126076078,0.127,3619.5,3618.8,0.59225187]
[1736126076278,0.127,3619.5,3619.2,0.02700875]
[1736126076594,0.127,3619.5,3619.3,0.02699797]
[1736126076942,0.127,3619.5,3618.8,0.59225187]
[1736126077142,0.127,3619.5,3618.9,0.02704108]
[1736126079528,2.48661,3619.4,3618.4,0.7998]
[1736126079745,3.7967,3619.3,3618.5,0.02708419]
[1736126079969,3.9237,3619.3,3618.5,0.02708419]
[1736126080145,0.9237,3619.3,3618.5,0.02708419]
[1736126080342,0.156471,3619.2,3618.5,0.02708419]
[1736126081142,3.0,3619.1,3618.5,0.02708419]
[1736126081349,3.0,3619.1,3618.1,0.8012]
[1736126081550,3.0,3619.1,3618.2,0.02691456]
[1736126082391,5.48688,3619.0,3618.2,0.02691456]
[1736126082547,3.8643351,3618.9,3618.2,0.02691456]
[1736126082748,0.8643351,3618.9,3618.2,0.02691456]
[1736126083172,3.0,3618.7,3618.2,0.02691456]
[1736126083545,2.48715,3618.6,3617.8,0.8332]
[1736126083743,2.48715,3618.6,3617.9,0.02724987]
[1736126087951,2.48715,3618.6,3617.8,0.8332]
[1736126088250,0.627845,3618.5,3617.9,0.02725492]
[1736126088962,3.115095,3618.5,3617.9,0.02725492]
[1736126089296,3.0,3618.4,3617.9,0.02725492]
[1736126095205,2.48731,3618.4,3617.9,0.02725492]
[1736126095375,0.627845,3618.5,3617.9,0.02725492]
[1736126095376,3.30806,3618.3,3617.9,0.02725492]
[1736126095580,3.30806,3618.3,3617.5,0.8049]
[1736126095811,3.30806,3618.3,3617.6,0.02824692]
[1736126096012,3.61304194,3618.4,3617.6,0.02824692]
[1736126096580,0.61304194,3618.4,3617.6,0.02824692]
[1736126096825,0.627845,3618.5,3617.6,0.02824692]
[1736126097873,3.0,3618.4,3617.6,0.02824692]
[1736126098362,2.48736,3618.3,3617.6,0.02824692]
[1736126099755,3.8039,3618.1,3617.6,0.02824692]
[1736126100052,3.8039,3618.1,3617.2,0.7609]
[1736126100053,2.48764,3617.9,3617.2,0.7609]
[1736126100262,3.0,3617.9,3617.7,0.02837255]
[1736126100432,3.0,3617.9,3617.2,0.7609]
[1736126100839,3.0,3617.9,3617.3,0.02847128]
[1736126101060,3.70606074,3617.8,3617.3,0.02847128]
[1736126101218,6.19380074,3617.8,3617.3,0.02847128]
[1736126101419,6.19380074,3617.8,3616.9,0.7609]
[1736126101867,6.19380074,3617.8,3617.0,0.02850364]
[1736126102075,3.70606074,3617.8,3617.0,0.02850364]
[1736126103381,0.125,3617.8,3617.2,2.48811]
[1736126103677,1.76201195,3618.5,3616.9,4.99085436]
[1736126103678,4.13416695,3618.5,3617.5,0.766]
[1736126103859,0.125,3618.1,3617.5,0.766]
[1736126104176,0.125,3618.1,3617.6,0.02863096]
[1736126104395,0.125,3618.3,3617.7,3.25375]
[1736126104740,0.125,3618.3,3617.8,0.02860939]
[1736126105207,0.72164039,3618.3,3617.7,0.766]
[1736126105339,0.125,3618.3,3617.7,0.766]
[1736126105545,0.125,3618.3,3617.8,0.02885699]
[1736126107198,3.0,3618.2,3617.8,0.02885699]
[1736126107362,6.27993,3617.9,3617.8,0.02885699]
[1736126107569,3.0,3617.8,3617.1,1.15355496]
[1736126107890,2.48804,3617.3,3617.2,0.02862861]
[1736126108245,3.0,3617.6,3617.0,1.15355496]
[1736126108481,2.48818,3617.1,3617.0,1.15355496]
[1736126108751,0.8009,3617.3,3617.0,1.15355496]
[1736126109493,0.8009,3617.3,3616.3,0.8233]
[1736126109701,0.8009,3617.3,3616.3,3.66105149]